bitfinex/quotes_BTCUSD_20220111
["timestamp","ask_amount","ask_price","bid_price","bid_amount"]
[1641925620038,2.81275731,42707.0,42702.0,0.00015]
[1641925620237,3.14376867,42707.0,42702.0,0.00015]
[1641925620540,0.47973463,42706.0,42702.0,0.00015]
[1641925620737,0.0472,42705.0,42702.0,0.00015]
[1641925620938,0.05856,42704.0,42702.0,0.00015]
[1641925621239,1.72673463,42706.0,42702.0,0.00015]
[1641925621240,1.2472,42703.0,42702.0,0.00015]
[1641925621883,1.24657615,42703.0,42702.0,0.00015]
[1641925622084,0.39865683,42703.0,42702.0,0.00015]
[1641925622286,0.0582,42703.0,42700.0,0.058548]
[1641925622487,0.011,42703.0,42701.0,0.00125001]
[1641925622684,0.011,42703.0,42701.0,0.00140001]
[1641925622885,0.011,42703.0,42702.0,0.00015]
[1641925623587,1.92515354,42714.0,42702.0,0.00015]
[1641925623787,0.98485354,42714.0,42702.0,0.00139222]
[1641925623987,0.98485354,42714.0,42707.0,0.05853]
[1641925624188,0.98485354,42714.0,42707.0,0.05979151]
[1641925624387,1.00685354,42714.0,42708.0,0.00015]
[1641925624991,1.00685354,42714.0,42710.0,0.058531]
[1641925625236,1.00685354,42714.0,42708.0,0.00015]
[1641925625435,0.94685354,42714.0,42710.0,0.00015]
[1641925625638,0.92485354,42714.0,42710.0,0.00015]
[1641925626337,0.92485354,42714.0,42710.0,0.002]
[1641925626736,0.92485354,42714.0,42710.0,0.00215]
[1641925626938,0.65823153,42713.0,42710.0,0.00215]
[1641925627138,0.34906678,42713.0,42710.0,0.00215]
[1641925627539,0.34906678,42713.0,42710.0,0.00015]
[1641925627736,0.00705284,42713.0,42710.0,0.00015]
[1641925627937,0.00705284,42713.0,42703.0,0.00015]
[1641925628237,0.00675284,42713.0,42710.0,0.002]
[1641925628437,0.00645284,42713.0,42710.0,0.002]
[1641925628636,0.00615284,42713.0,42710.0,0.00215]
[1641925628881,0.36730434,42712.0,42710.0,0.00215]
[1641925629083,0.36700434,42712.0,42710.0,0.00215]
[1641925629283,0.88787612,42711.0,42710.0,0.00215]
[1641925629485,0.88787612,42711.0,42710.0,0.00015]
[1641925629684,0.88757612,42711.0,42710.0,0.00015]
[1641925629884,0.28757612,42711.0,42705.0,0.00015]
[1641925630086,0.00615284,42713.0,42705.0,0.00015]
[1641925630287,0.00585284,42713.0,42710.0,0.002]
[1641925630485,0.00555284,42713.0,42710.0,0.002]
[1641925630685,0.00525284,42713.0,42710.0,0.00215]
[1641925630885,0.00495284,42713.0,42710.0,0.00215]
[1641925631085,0.00465284,42713.0,42710.0,0.00215]
[1641925631285,0.00405284,42713.0,42710.0,0.00215]
[1641925631485,0.00405284,42713.0,42710.0,0.00015]
[1641925631486,0.00375284,42713.0,42710.0,0.00015]
[1641925631886,0.00375284,42713.0,42707.0,0.00015]
[1641925632287,0.00375284,42713.0,42710.0,0.002]
[1641925632740,0.00375284,42713.0,42710.0,0.00215]
[1641925633537,0.00375284,42713.0,42711.0,0.00122511]
[1641925634339,0.00375284,42713.0,42711.0,0.003]
[1641925635540,0.00375284,42713.0,42710.0,0.00015]
[1641925635741,0.33621223,42711.0,42710.0,0.00015]
[1641925635941,0.33621223,42711.0,42705.0,0.00015]
[1641925636380,0.33621223,42711.0,42710.0,0.002]
[1641925636883,0.78606397,42711.0,42710.0,0.00215]
[1641925637581,0.78606397,42711.0,42710.0,0.00015]
[1641925637782,0.00375284,42713.0,42710.0,0.00015]
[1641925637987,0.00375284,42713.0,42706.0,0.11121697]
[1641925638182,0.00375284,42713.0,42707.0,0.00015]
[1641925638383,0.00375284,42713.0,42710.0,0.003]
[1641925638683,0.00375284,42713.0,42710.0,0.00315]
[1641925638883,0.2753336,42712.0,42710.0,0.00315]
[1641925639483,0.00375284,42713.0,42710.0,0.00015]
[1641925639888,0.00375284,42713.0,42707.0,0.00015]
[1641925640332,0.00375284,42713.0,42710.0,0.002]
[1641925640732,0.00375284,42713.0,42710.0,0.00215]
[1641925641435,0.26277118,42712.0,42710.0,0.00215]
[1641925641632,0.35,42711.0,42710.0,0.00015]
[1641925642032,0.35,42711.0,42707.0,0.058534]
[1641925642232,0.35,42711.0,42710.0,0.002]
[1641925642532,0.35,42711.0,42710.0,0.00215]
[1641925642931,0.61697779,42711.0,42710.0,0.00215]
[1641925643134,0.61197779,42711.0,42710.0,0.00215]
[1641925643532,0.00375284,42713.0,42710.0,0.00015]
[1641925643985,0.00375284,42713.0,42709.0,0.00015]
[1641925644185,1.60390799,42718.0,42709.0,0.00015]
[1641925644186,0.04595284,42717.0,42709.0,0.00015]
[1641925644385,0.04595284,42717.0,42710.0,0.002]
[1641925644587,0.41439547,42716.0,42710.0,0.002]
[1641925644786,0.41439547,42716.0,42710.0,0.00215]
[1641925645187,0.46197938,42719.0,42710.0,0.00215]
[1641925645387,0.00062283,42718.0,42710.0,0.00215]
[1641925645586,0.00062283,42718.0,42710.0,0.00015]
[1641925645791,0.25947495,42717.0,42710.0,0.00015]
[1641925645992,0.25947495,42717.0,42709.0,0.00015]
[1641925645993,0.26076664,42717.0,42709.0,0.00015]
[1641925646187,0.0472,42716.0,42709.0,0.00015]
[1641925646388,0.0472,42716.0,42710.0,0.003]
[1641925646588,1.305545,42715.0,42710.0,0.003]
[1641925646788,0.39248542,42714.0,42710.0,0.00315]
[1641925647642,1.2942,42714.0,42710.0,0.00015]
[1641925648033,0.31173621,42713.0,42700.0,0.0003]
[1641925648233,0.31173621,42713.0,42710.0,0.001]
[1641925648234,0.0472,42712.0,42710.0,0.001]
[1641925648437,2.45495017,42711.0,42710.0,0.001]
[1641925648636,2.45495017,42711.0,42710.0,0.00115]
[1641925648637,2.50215017,42711.0,42710.0,0.00115]
[1641925648837,2.1942,42711.0,42710.0,0.00115]
[1641925649438,2.61053074,42711.0,42710.0,0.00115]
[1641925650236,2.61053074,42711.0,42710.0,0.00015]
[1641925650237,0.9472,42711.0,42710.0,0.00015]
[1641925650635,0.9472,42711.0,42700.0,0.0003]
[1641925650836,1.27708858,42711.0,42700.0,0.0003]
[1641925651237,0.40530682,42705.0,42699.0,0.0003]
[1641925651887,0.2973546,42704.0,42699.0,0.0003]
[1641925652290,0.0472,42703.0,42699.0,0.0323]
[1641925652487,0.32234616,42703.0,42699.0,0.0323]
[1641925652689,0.74692347,42703.0,42700.0,0.0003]
[1641925652887,1.17809899,42703.0,42700.0,0.0003]
[1641925653692,0.32234616,42703.0,42700.0,0.0003]
[1641925653888,0.32234616,42703.0,42695.0,0.00075897]
[1641925654088,0.32234616,42703.0,42696.0,0.0003]
[1641925654288,0.33034616,42703.0,42700.0,0.002]
[1641925654489,0.42389603,42702.0,42700.0,0.002]
[1641925654688,0.42389603,42702.0,42701.0,0.00015]
[1641925654889,1.37389603,42702.0,42701.0,0.00015]
[1641925655532,1.72476616,42702.0,42701.0,0.00015]
[1641925655732,0.77389603,42702.0,42701.0,0.00015]
[1641925655934,0.77389603,42702.0,42696.0,0.0003]
[1641925656335,0.80089603,42702.0,42701.0,0.001]
[1641925656733,1.18455731,42702.0,42701.0,0.00115]
[1641925657534,1.15755731,42702.0,42701.0,0.00015]
[1641925657734,1.57389603,42702.0,42701.0,0.00015]
[1641925657935,1.57389603,42702.0,42696.0,0.0003]
[1641925658137,0.77389603,42702.0,42696.0,0.0003]
[1641925658338,0.80589603,42702.0,42696.0,0.0003]
[1641925658736,0.80589603,42702.0,42695.0,0.00075896]
[1641925658988,0.4237929,42700.0,42695.0,0.00075896]
[1641925659386,0.4237929,42700.0,42696.0,0.0003]
[1641925660085,0.4237929,42700.0,42695.0,0.00075895]
[1641925660285,0.4347929,42700.0,42696.0,0.00415]
[1641925660687,0.4347929,42700.0,42697.0,0.0003]
[1641925660888,0.011,42700.0,42697.0,0.0003]
[1641925661589,0.77389603,42702.0,42697.0,0.0003]
[1641925661988,0.77389603,42702.0,42696.0,0.0003]
[1641925662388,0.78689603,42702.0,42697.0,0.004]
[1641925662639,0.45068331,42698.0,42697.0,0.004]
[1641925663035,0.78689603,42702.0,42697.0,0.0043]
[1641925663434,0.68689603,42702.0,42698.0,0.0003]
[1641925663636,0.3104,42705.0,42698.0,0.0003]
[1641925664035,0.3104,42705.0,42696.0,0.11154278]
[1641925664237,1.247,42709.0,42696.0,0.11154278]
[1641925664435,0.012,42705.0,42698.0,0.004]
[1641925664835,0.012,42705.0,42699.0,0.0003]
[1641925665434,0.012,42705.0,42700.0,0.05268989]
[1641925665634,1.247,42709.0,42700.0,0.05268989]
[1641925665837,0.34197458,42710.0,42701.0,0.00015]
[1641925666036,0.26834409,42706.0,42701.0,0.00015]
[1641925666493,0.04858736,42708.0,42701.0,0.002]
[1641925666691,0.43563315,42706.0,42701.0,0.002]
[1641925666996,0.43563315,42706.0,42702.0,0.00015]
[1641925667393,0.31961662,42705.0,42702.0,0.00015]
[1641925667997,0.31961662,42705.0,42699.0,0.0003]
[1641925668492,0.34761662,42705.0,42702.0,0.001]
[1641925668893,0.34761662,42705.0,42703.0,0.00015]
[1641925669695,0.31961662,42705.0,42703.0,0.00015]
[1641925670143,0.31961662,42705.0,42699.0,0.0503]
[1641925670341,0.36161662,42705.0,42699.0,0.04866361]
[1641925671140,0.36161662,42705.0,42696.0,0.11124492]
[1641925671541,0.31961662,42705.0,42696.0,0.11124492]
[1641925671741,0.47661763,42706.0,42696.0,0.11124492]
[1641925672342,0.48361763,42706.0,42699.0,0.05269138]
[1641925672542,0.48361763,42706.0,42698.0,0.05]
[1641925672743,0.31107021,42705.0,42696.0,0.055]
[1641925673043,0.31107021,42705.0,42696.0,0.005]
[1641925673646,0.31107021,42705.0,42695.0,0.00075898]
[1641925673886,0.31107021,42705.0,42694.0,0.10982255]
[1641925674086,0.40432055,42704.0,42695.0,0.00075896]
[1641925674285,0.28144423,42698.0,42695.0,0.00075896]
[1641925674486,0.28144423,42698.0,42695.0,0.05345581]
[1641925674690,0.28144423,42698.0,42695.0,0.00075896]
[1641925675086,0.28144423,42698.0,42694.0,0.006]
[1641925675286,0.28144423,42698.0,42694.0,0.00675894]
[1641925675686,0.28144423,42698.0,42694.0,0.00075894]
[1641925676286,0.28144423,42698.0,42690.0,0.1055431]
[1641925676487,0.28844423,42698.0,42694.0,0.00775895]
[1641925677090,0.007,42698.0,42694.0,0.00775895]
[1641925677489,0.007,42698.0,42694.0,0.007]
[1641925677737,0.40432055,42704.0,42694.0,0.00075895]
[1641925677935,0.33216951,42702.0,42695.0,0.05269475]
[1641925678335,0.33216951,42702.0,42696.0,0.05855]
[1641925678537,0.33216951,42702.0,42694.0,0.00775895]
[1641925678736,0.33216951,42702.0,42694.0,0.007]
[1641925678737,0.37936951,42702.0,42694.0,0.007]
[1641925678936,0.37936951,42702.0,42695.0,0.00075896]
[1641925679339,0.37936951,42702.0,42696.0,0.058548]
[1641925679537,0.37936951,42702.0,42697.0,0.11124065]
[1641925679741,0.0472,42702.0,42697.0,0.11124065]
[1641925680339,0.0572,42702.0,42697.0,0.16524065]
[1641925680538,0.0572,42702.0,42697.0,0.11524065]
[1641925680740,0.01,42700.0,42697.0,0.05669265]
[1641925681691,0.01,42700.0,42697.0,0.05269265]
[1641925681892,0.01,42700.0,42699.0,0.00126048]
[1641925682092,0.01,42700.0,42699.0,1.02827348]
[1641925682296,0.00015,42710.0,42704.0,0.05268023]
[1641925682495,0.00015,42710.0,42709.0,0.00125132]
[1641925683693,0.00015,42710.0,42709.0,0.82826432]
[1641925683894,0.00015,42710.0,42709.0,0.87826432]
[1641925684094,0.00015,42710.0,42709.0,0.92826432]
[1641925684493,0.02615,42710.0,42709.0,0.93626432]
[1641925684693,0.02615,42710.0,42709.0,1.22876704]
[1641925685542,0.02615,42710.0,42709.0,1.48626432]
[1641925685743,0.00015,42710.0,42709.0,1.47826432]
[1641925686244,0.00015,42710.0,42709.0,1.52546432]
[1641925686442,0.00015,42710.0,42709.0,0.98946432]
[1641925686642,0.059523,42732.0,42717.0,0.05266894]
[1641925686842,0.059523,42732.0,42717.0,0.058522]
[1641925687046,1.01693201,42727.0,42717.0,0.058522]
[1641925687242,1.01693201,42727.0,42715.0,0.21385987]
[1641925687442,0.41924359,42727.0,42715.0,0.21385987]
[1641925687646,0.30175222,42726.0,42715.0,0.15533787]
[1641925688044,0.41924359,42727.0,42715.0,0.15533787]
[1641925688045,0.41924359,42727.0,42716.0,0.05]
[1641925688243,0.41924359,42727.0,42715.0,0.15533787]
[1641925688443,0.41924359,42727.0,42715.0,0.15833787]
[1641925688643,0.31924359,42727.0,42715.0,0.15833787]
[1641925688886,0.09383276,42716.0,42714.0,0.058521]
[1641925689085,0.09383276,42716.0,42714.0,0.051851]
[1641925689285,0.09383276,42716.0,42715.0,0.10662441]
[1641925689485,0.09383276,42716.0,42715.0,0.47812296]
[1641925689687,0.09383276,42716.0,42715.0,0.45475539]
[1641925690292,0.09383276,42716.0,42715.0,0.50475539]
[1641925690487,0.09383276,42716.0,42715.0,0.57027539]
[1641925690687,0.46446668,42725.0,42715.0,0.57027539]
[1641925690888,0.46446668,42725.0,42715.0,0.11493359]
[1641925691188,0.31924359,42727.0,42717.0,0.058518]
[1641925691387,0.24783746,42724.0,42717.0,0.058518]
[1641925691587,0.24783746,42724.0,42719.0,0.058518]
[1641925692191,0.24783746,42724.0,42719.0,0.00074909]
[1641925692390,0.24783746,42724.0,42719.0,0.00274909]
[1641925693245,0.24783746,42724.0,42719.0,0.002]
[1641925693443,0.24783746,42724.0,42719.0,0.00274909]
[1641925693644,0.8176823,42727.0,42719.0,0.00074909]
[1641925694245,0.31924359,42727.0,42719.0,0.00074909]
[1641925694445,0.31924359,42727.0,42719.0,0.002]
[1641925694647,0.62880477,42727.0,42721.0,0.00074907]
[1641925694846,0.31924359,42727.0,42721.0,0.00074907]
[1641925695047,0.01286336,42728.0,42722.0,0.05266]
[1641925695647,0.0122607,42728.0,42722.0,0.05266]
[1641925695849,0.00112727,42727.0,42725.0,0.058509]
[1641925696488,0.00112727,42727.0,42725.0,0.061509]
[1641925697092,1.35595693,42726.0,42725.0,0.003]
[1641925697790,0.30595693,42726.0,42724.0,0.00075972]
[1641925697992,0.72996847,42726.0,42713.0,0.32278904]
[1641925698190,0.72996847,42726.0,42723.0,0.00075972]
[1641925698191,0.41013733,42725.0,42723.0,0.00075972]
[1641925698591,0.00112727,42727.0,42723.0,0.00075972]
[1641925699194,0.00112727,42727.0,42720.0,0.117019]
[1641925699391,0.00112727,42727.0,42723.0,0.0020531]
[1641925699791,0.00112727,42727.0,42724.0,0.052657]
[1641925700148,0.00112727,42727.0,42723.0,0.0605661]
[1641925700342,0.00112727,42727.0,42723.0,0.11831658]
[1641925700545,0.00112727,42727.0,42724.0,0.002]
[1641925700944,0.31450725,42728.0,42724.0,0.002]
[1641925701545,0.31391206,42728.0,42724.0,0.002]
[1641925701744,0.31450726,42728.0,42724.0,0.00075851]
[1641925702543,0.31450726,42728.0,42724.0,0.00275851]
[1641925702746,0.31391206,42728.0,42724.0,0.002]
[1641925702945,0.31450715,42728.0,42724.0,0.00275865]
[1641925703344,0.01285579,42728.0,42724.0,0.06126765]
[1641925703747,0.01285579,42728.0,42724.0,0.00075865]
[1641925703987,0.0122607,42728.0,42720.0,0.117019]
[1641925704187,0.01285579,42728.0,42724.0,0.00075865]
[1641925704388,0.34310957,42725.0,42724.0,0.00075865]
[1641925704588,0.82203552,42725.0,42724.0,0.00075865]
[1641925704790,1.21871793,42725.0,42724.0,0.00075865]
[1641925705187,1.21871793,42725.0,42721.0,0.05]
[1641925705388,1.21871793,42725.0,42722.0,0.00075867]
[1641925706389,0.06007,42725.0,42722.0,0.058513]
[1641925706590,0.06007,42725.0,42722.0,0.004]
[1641925707390,0.84282415,42725.0,42722.0,0.004]
[1641925707642,0.06007,42725.0,42719.0,0.052662]
[1641925707836,0.06007,42725.0,42721.0,0.00075866]
[1641925708237,0.06007,42723.0,42721.0,0.00075866]
[1641925708440,1.30727,42722.0,42721.0,0.00075866]
[1641925708836,1.59626485,42722.0,42713.0,0.0945]
[1641925709038,0.06007,42715.0,42713.0,0.0945]
[1641925710439,0.06507,42715.0,42713.0,0.1135]
[1641925711042,0.06507,42715.0,42713.0,0.1635]
[1641925711241,0.06507,42715.0,42713.0,0.1135]
[1641925711487,0.31556827,42715.0,42713.0,0.1135]
[1641925711686,0.64955807,42715.0,42713.0,0.0945]
[1641925712291,0.64955807,42715.0,42712.0,0.00075876]
[1641925712487,0.64955807,42715.0,42713.0,0.03]
[1641925712488,0.65755807,42715.0,42713.0,0.03]
[1641925713591,0.4070598,42715.0,42713.0,0.03]
[1641925713789,0.4070598,42715.0,42710.0,0.00015]
[1641925713790,0.3990598,42715.0,42712.0,0.00075877]
[1641925714389,0.50767551,42713.0,42712.0,0.00075877]
[1641925714590,0.80192797,42713.0,42712.0,0.01475877]
[1641925714790,0.80192797,42713.0,42712.0,0.014]
[1641925715839,0.80192797,42713.0,42710.0,0.00090878]
[1641925716041,0.80192797,42713.0,42710.0,0.00015]
[1641925716244,0.80192797,42713.0,42710.0,0.00090878]
[1641925716245,1.26007,42711.0,42710.0,0.00090878]
[1641925716445,1.30727,42711.0,42710.0,0.00075878]
[1641925717243,1.30727,42711.0,42708.0,0.00015]
[1641925717441,1.30727,42711.0,42708.0,0.0009088]
[1641925717645,0.06007,42709.0,42699.0,0.00015]
[1641925717842,0.06007,42707.0,42699.0,0.00015]
[1641925718042,0.06007,42705.0,42699.0,0.00015]
[1641925718243,0.06007,42705.0,42696.0,0.00015]
[1641925718443,0.06007,42703.0,42696.0,0.00015]
[1641925718642,0.06007,42703.0,42696.0,0.058698]
[1641925718898,0.06007,42703.0,42696.0,0.058548]
[1641925719093,0.06007,42703.0,42697.0,0.41228561]
[1641925719496,0.06007,42703.0,42698.0,0.00015]
[1641925719693,0.06007,42703.0,42700.0,0.058539]
[1641925720093,0.06007,42703.0,42700.0,0.058689]
[1641925720296,0.06007,42703.0,42700.0,0.00015]
[1641925720510,0.06007,42701.0,42696.0,0.265644]
[1641925720695,0.06007,42699.0,42696.0,0.0432]
[1641925721095,0.06007,42699.0,42696.0,0.00050834]
[1641925721297,0.30217122,42697.0,42696.0,0.00050834]
[1641925721699,0.06007,42697.0,42696.0,0.00050834]
[1641925722097,0.06007,42697.0,42694.0,0.05084433]
[1641925722396,0.06007,42697.0,42694.0,0.10939533]
[1641925723137,0.06007,42697.0,42694.0,0.108551]
[1641925723338,0.06007,42697.0,42695.0,0.377013]
[1641925723538,0.06007,42697.0,42695.0,0.494099]
[1641925724439,0.06007,42697.0,42695.0,0.446299]
[1641925724740,0.06007,42697.0,42695.0,0.420868]
[1641925724938,0.06007,42697.0,42696.0,0.05]
[1641925725139,0.35252662,42696.0,42695.0,0.112086]
[1641925725340,0.35252662,42696.0,42695.0,0.095986]
[1641925725740,0.06007,42696.0,42695.0,0.095986]
[1641925726140,0.06007,42696.0,42695.0,0.472735]
[1641925727894,0.06007,42696.0,42695.0,0.622735]
[1641925730147,0.06007,42701.0,42695.0,0.622735]
[1641925730343,0.06007,42701.0,42695.0,0.15]
[1641925730542,0.06007,42699.0,42695.0,0.208551]
[1641925731843,0.06007,42699.0,42695.0,0.20939533]
[1641925732143,0.06007,42699.0,42695.0,0.25939533]
[1641925732343,0.06007,42699.0,42696.0,0.376749]
[1641925732545,0.06007,42699.0,42696.0,0.426749]
[1641925732842,0.06007,42699.0,42696.0,0.4853]
[1641925733042,0.06007,42699.0,42697.0,0.058543]
[1641925734492,0.06107,42699.0,42697.0,0.058543]
[1641925734895,0.06107,42699.0,42697.0,0.108543]
[1641925735093,0.06107,42699.0,42697.0,0.16123]
[1641925735293,0.05607,42699.0,42697.0,0.16123]
[1641925735495,0.05507,42698.0,42697.0,0.16123]
[1641925735694,0.05507,42698.0,42697.0,0.537979]
[1641925735894,0.05507,42698.0,42697.0,0.487979]
[1641925736295,0.05507,42698.0,42697.0,0.435292]
[1641925737398,0.05507,42698.0,42697.0,0.376749]
[1641925737646,0.05507,42698.0,42696.0,0.108551]
[1641925738043,0.05507,42698.0,42697.0,0.408544]
[1641925738243,0.05507,42698.0,42697.0,0.435293]
[1641925739044,0.05507,42698.0,42696.0,0.108551]
[1641925739945,0.05507,42698.0,42696.0,0.161244]
[1641925740947,0.05507,42697.0,42696.0,0.161244]
[1641925741147,0.05507,42697.0,42696.0,0.537993]
[1641925741795,0.05507,42697.0,42696.0,0.587993]
[1641925741997,0.05507,42697.0,42696.0,0.646538]
[1641925745543,0.05507,42697.0,42696.0,0.96540642]
[1641925745744,0.05507,42697.0,42696.0,1.21540642]
[1641925745944,0.05507,42705.0,42696.0,0.96540642]
[1641925746144,0.05507,42697.0,42696.0,0.58865742]
[1641925746345,0.05507,42697.0,42696.0,0.96540642]
[1641925746546,0.05507,42697.0,42696.0,0.99640642]
[1641925746745,0.05507,42697.0,42696.0,0.677538]
[1641925747746,0.05507,42697.0,42696.0,0.646538]
[1641925748549,0.05507,42697.0,42696.0,0.678538]
[1641925749794,0.05507,42697.0,42696.0,0.646538]
[1641925750596,0.05507,42697.0,42696.0,0.675538]
[1641925750797,0.05507,42697.0,42696.0,0.575538]
[1641925751697,0.05507,42697.0,42696.0,0.198789]
[1641925751897,0.05507,42697.0,42696.0,0.169789]
[1641925752096,0.05507,42697.0,42696.0,0.269789]
[1641925752743,0.05507,42697.0,42696.0,0.330789]
[1641925752941,0.05507,42697.0,42696.0,0.707538]
[1641925754444,0.05507,42697.0,42696.0,0.646538]
[1641925754643,0.26141357,42707.0,42697.0,0.926749]
[1641925754845,0.26264386,42707.0,42702.0,0.058541]
[1641925755048,0.073271,42706.0,42702.0,0.058541]
[1641925755445,0.48310157,42706.0,42702.0,0.058541]
[1641925755850,0.48310157,42706.0,42702.0,0.00084424]
[1641925756595,0.45911484,42705.0,42702.0,0.00784424]
[1641925756795,0.073271,42704.0,42702.0,0.007]
[1641925756996,0.073271,42704.0,42702.0,0.00784424]
[1641925757998,0.073271,42704.0,42697.0,0.05]
[1641925758198,0.45911484,42705.0,42701.0,0.00084426]
[1641925758398,0.073271,42704.0,42701.0,0.00084426]
[1641925758602,0.076271,42704.0,42701.0,0.00084426]
[1641925759297,0.44813832,42698.0,42696.0,0.275634]
[1641925760154,0.45911484,42705.0,42697.0,0.052692]
[1641925760344,0.32400532,42700.0,42699.0,0.058546]
[1641925760543,0.32400532,42700.0,42697.0,0.052692]
[1641925760945,0.32400532,42700.0,42698.0,0.058547]
[1641925761143,0.46711484,42705.0,42698.0,0.058547]
[1641925761343,0.44877783,42702.0,42698.0,0.058547]
[1641925761544,0.44877783,42702.0,42699.0,0.052691]
[1641925761843,0.44877783,42702.0,42699.0,0.05353527]
[1641925762245,0.44877783,42702.0,42699.0,0.11208127]
[1641925762648,0.44977783,42702.0,42699.0,0.00084427]
[1641925762846,0.44977783,42702.0,42698.0,0.058547]
[1641925763045,0.44977783,42702.0,42698.0,0.10939129]
[1641925763445,0.001,42702.0,42698.0,0.10939129]
[1641925763647,0.001,42702.0,42700.0,0.058542]
[1641925763891,0.40983057,42706.0,42700.0,0.058542]
[1641925764092,0.073271,42705.0,42702.0,0.058542]
[1641925764292,0.40091779,42705.0,42702.0,0.058542]
[1641925764691,0.40303901,42704.0,42702.0,0.058542]
[1641925764891,0.073271,42703.0,42702.0,0.058542]
[1641925765692,0.053271,42703.0,42702.0,0.058542]
[1641925766793,0.054271,42703.0,42702.0,0.058542]
[1641925767649,0.054271,42703.0,42699.0,0.058546]
[1641925767846,0.054271,42703.0,42700.0,0.00084426]
[1641925768044,0.053271,42703.0,42700.0,0.00084426]
[1641925768645,1.2,42702.0,42699.0,0.03347926]
[1641925768845,1.2,42702.0,42696.0,0.105378]
[1641925768846,0.053276,42701.0,42696.0,0.105378]
[1641925769049,0.04845877,42700.0,42692.0,0.009376]
[1641925769249,0.00129165,42694.0,42692.0,0.009376]
[1641925769446,0.100476,42693.0,42692.0,0.009376]
[1641925770645,0.108476,42693.0,42692.0,0.009376]
[1641925771248,0.44894534,42693.0,42692.0,0.009376]
[1641925771496,0.44894534,42693.0,42688.0,0.00015]
[1641925771696,1.2,42688.0,42687.0,5e-05]
[1641925771897,1.300476,42688.0,42687.0,5e-05]
[1641925772095,1.400476,42688.0,42687.0,5e-05]
[1641925772695,1.317476,42688.0,42687.0,5e-05]
[1641925773496,0.117476,42688.0,42687.0,5e-05]
[1641925773898,0.100476,42688.0,42687.0,5e-05]
[1641925774498,0.950476,42688.0,42687.0,5e-05]
[1641925774698,1.30889756,42688.0,42687.0,5e-05]
[1641925774898,2.55589756,42688.0,42687.0,5e-05]
[1641925775153,3.0150582,42688.0,42687.0,5e-05]
[1641925775343,3.15481673,42688.0,42687.0,5e-05]
[1641925775746,3.25481673,42688.0,42687.0,5e-05]
[1641925775944,3.69395552,42688.0,42687.0,5e-05]
[1641925776549,3.67695552,42688.0,42687.0,5e-05]
[1641925776747,3.72580116,42688.0,42687.0,5e-05]
[1641925777448,3.28666237,42688.0,42687.0,5e-05]
[1641925777949,3.27266237,42688.0,42687.0,5e-05]
[1641925778650,2.81350173,42688.0,42687.0,5e-05]
[1641925778892,2.34732164,42688.0,42687.0,5e-05]
[1641925779898,2.33232164,42688.0,42687.0,5e-05]
[1641925780298,1.08532164,42688.0,42687.0,5e-05]
[1641925780497,1.39866782,42688.0,42687.0,5e-05]
[1641925780694,1.41766782,42688.0,42687.0,5e-05]
[1641925781996,1.39866782,42688.0,42687.0,5e-05]
[1641925782398,1.29866782,42688.0,42687.0,5e-05]
[1641925782647,0.44866782,42688.0,42687.0,5e-05]
[1641925782852,0.44332481,42688.0,42687.0,5e-05]
[1641925783047,0.15232164,42688.0,42687.0,5e-05]
[1641925783248,0.44907426,42688.0,42687.0,5e-05]
[1641925783446,0.84907426,42688.0,42687.0,5e-05]
[1641925783649,1.27325718,42688.0,42687.0,5e-05]
[1641925784047,1.25625718,42688.0,42687.0,5e-05]
[1641925784447,0.83207426,42688.0,42687.0,5e-05]
[1641925784948,1.27144685,42688.0,42687.0,5e-05]
[1641925785347,1.65541544,42688.0,42687.0,5e-05]
[1641925785747,0.84807426,42688.0,42687.0,5e-05]
[1641925786150,0.83207426,42688.0,42687.0,5e-05]
[1641925786391,1.38207426,42688.0,42687.0,5e-05]
[1641925786595,2.72907426,42688.0,42687.0,5e-05]
[1641925786793,1.92198768,42688.0,42687.0,5e-05]
[1641925787595,2.29907402,42688.0,42687.0,5e-05]
[1641925787995,2.28607402,42688.0,42687.0,5e-05]
[1641925788699,1.33607402,42688.0,42687.0,5e-05]
[1641925788898,0.111476,42688.0,42687.0,5e-05]
[1641925789301,0.011,42688.0,42687.0,5e-05]
[1641925789898,0.011,42688.0,42687.0,0.376767]
[1641925790352,0.011,42688.0,42687.0,0.776767]
[1641925790851,0.4549673,42698.0,42689.0,0.00122106]
[1641925791050,0.4549673,42698.0,42692.0,0.058552]
[1641925791254,0.053276,42697.0,42695.0,0.058552]
[1641925791952,0.053276,42697.0,42694.0,0.05345584]
[1641925792154,0.053276,42697.0,42695.0,0.058553]
[1641925792453,0.053276,42697.0,42694.0,0.10345584]
[1641925792851,0.073276,42697.0,42694.0,0.052697]
[1641925793253,0.073276,42697.0,42693.0,0.00075898]
[1641925793452,0.43721038,42694.0,42693.0,0.00075898]
[1641925793757,0.053276,42694.0,42693.0,0.05075898]
[1641925793994,0.4549673,42698.0,42692.0,0.052705]
[1641925794195,0.053276,42697.0,42692.0,0.052705]
[1641925794395,0.41660999,42693.0,42692.0,0.052705]
[1641925794797,0.41660999,42693.0,42692.0,0.084705]
[1641925794997,0.41660999,42693.0,42692.0,0.032]
[1641925795196,0.71660999,42693.0,42692.0,0.032]
[1641925795396,0.76988599,42693.0,42692.0,0.032]
[1641925795999,0.76988599,42693.0,42690.0,0.10346701]
[1641925796196,0.76988599,42693.0,42690.0,0.05346701]
[1641925796197,0.053276,42692.0,42690.0,0.05346701]
[1641925796402,0.43258353,42691.0,42690.0,0.052708]
[1641925796599,0.00705493,42693.0,42690.0,0.052708]
[1641925796799,0.008,42692.0,42690.0,0.062708]
[1641925797843,0.37190464,42691.0,42690.0,0.062708]
[1641925798043,0.37190464,42691.0,42690.0,0.052708]
[1641925798745,0.37890464,42691.0,42690.0,0.064708]
[1641925800148,0.37190464,42691.0,42688.0,0.00075901]
[1641925800350,0.053276,42690.0,42688.0,0.00075901]
[1641925800748,0.93154863,42689.0,42688.0,0.01975901]
[1641925800949,0.43482463,42689.0,42688.0,0.01975901]
[1641925801148,0.43482463,42689.0,42688.0,0.019]
[1641925801997,0.053276,42689.0,42687.0,5e-05]